bitfinex/quotes_SOLUSD_20251031
["timestamp","ask_amount","ask_price","bid_price","bid_amount"]
[1761876875966,3.3786735,185.01,184.97,0.69]
[1761876876169,5.15461208,185.02,184.97,0.69]
[1761876876393,3.37560337,185.01,184.97,0.69]
[1761876876872,5.15461208,184.98,184.81,15.99881426]
[1761876877073,5.15461208,184.94,184.87,5.15461208]
[1761876877275,0.72,184.97,184.88,0.69]
[1761876877448,5.15461208,184.94,184.88,0.69]
[1761876878269,20.592,184.95,184.88,0.69]
[1761876878476,5.15461208,184.93,184.88,0.69]
[1761876878843,5.15461208,184.89,184.84,0.69]
[1761876879057,5.15461208,184.88,184.84,0.69]
[1761876879769,5.15461208,184.89,184.84,0.69]
[1761876879965,5.15461208,184.89,184.85,5.40979172]
[1761876880769,5.15461208,184.9,184.86,0.69]
[1761876881144,5.40746666,184.93,184.86,0.69]
[1761876881349,9.07504812,184.92,184.86,0.69]
[1761876881581,3.92043604,184.91,184.86,0.69]
[1761876881872,9.07504812,184.91,184.86,0.69]
[1761876882182,5.15461208,184.9,184.86,6.09945402]
[1761876882673,5.15461208,184.9,184.86,5.40945402]
[1761876882871,5.15461208,184.9,184.87,0.69]
[1761876883261,20.592,184.94,184.87,0.69]
[1761876883467,5.15461208,184.92,184.87,0.69]
[1761876883680,20.592,184.94,184.87,0.69]
[1761876883858,25.74661208,184.9,184.87,0.69]
[1761876884386,25.74661208,184.9,184.85,6.09976617]
[1761876884556,5.15461208,184.89,184.86,0.69]
[1761876884757,5.15461208,184.9,184.86,0.69]
[1761876885061,5.15461208,184.89,184.83,5.41035948]
[1761876885266,5.15461208,184.87,184.84,0.69]
[1761876885791,5.15461208,184.88,184.84,0.69]
[1761876886462,5.15461208,184.87,184.84,6.09997813]
[1761876887089,5.15461208,184.87,184.85,0.69]
[1761876887591,5.15461208,184.88,184.85,6.09964868]
[1761876888287,20.592,184.89,184.8,0.69]
[1761876888288,5.15461208,184.86,184.8,0.69]
[1761876888484,5.15461208,184.84,184.8,0.69]
[1761876888683,5.15461208,184.86,184.8,0.69]
[1761876889195,5.15461208,184.86,184.81,5.41096261]
[1761876889406,5.15461208,184.85,184.82,0.69]
[1761876889610,26.00120965,184.87,184.82,0.69]
[1761876889791,25.74661208,184.87,184.82,0.69]
[1761876889987,20.592,184.87,184.82,0.69]
[1761876890188,5.15461208,184.86,184.82,0.69]
[1761876890396,20.592,184.87,184.82,0.69]
[1761876891282,20.592,184.87,184.83,5.4103771]
[1761876891686,5.87461208,184.89,184.84,0.69]
[1761876891888,5.15461208,184.89,184.84,0.69]
[1761876892091,5.15461208,184.91,184.84,5.84461208]
[1761876892295,5.15461208,184.91,184.84,0.69]
[1761876892497,5.15461208,184.91,184.85,0.69]
[1761876892802,5.15461208,184.93,184.87,5.15461208]
[1761876893105,5.15461208,184.95,184.89,5.15461208]
[1761876893407,5.15461208,184.95,184.9,5.40832882]
[1761876893600,5.15461208,184.95,184.9,6.09832882]
[1761876893812,5.15461208,184.95,184.91,0.69]
[1761876894504,20.592,184.94,184.91,6.09778664]
[1761876894892,20.592,184.94,184.92,0.69]
[1761876895509,25.74661208,184.94,184.92,0.69]
[1761876895713,20.592,184.94,184.92,0.69]
[1761876897008,25.74661208,184.94,184.92,0.69]
[1761876897606,20.592,184.94,184.92,0.69]
[1761876897802,20.592,184.94,184.92,6.09767433]
[1761876898906,20.592,184.96,184.93,0.66]
[1761876899127,3.93256242,184.95,184.93,0.66]
[1761876899302,5.15461208,184.98,184.93,0.66]
[1761876899510,3.93402991,184.97,184.93,5.81461208]
[1761876899686,5.15461208,184.99,184.93,5.81461208]
[1761876899894,3.93420198,184.98,184.94,0.66]
[1761876900110,3.93420198,184.98,184.94,5.81461208]
[1761876900288,5.15461208,185.01,184.94,5.81461208]
[1761876900489,9.08987267,185.0,184.95,0.66]
[1761876900813,3.21526059,184.99,184.97,5.40628209]
[1761876901017,0.67,185.04,184.98,0.66]
[1761876901321,0.67,185.04,184.97,6.06628209]
[1761876901487,3.43275747,185.06,184.98,5.81461208]
[1761876901814,0.67,185.09,184.99,9.78882769]
[1761876902015,4.10329346,185.12,185.01,5.15461208]
[1761876902320,9.50523198,185.12,185.02,5.15461208]
[1761876902489,5.15461208,185.08,185.02,5.15461208]
[1761876902687,5.15461208,185.08,185.03,0.66]
[1761876902907,5.15461208,185.09,185.03,6.06424977]
[1761876903113,5.15461208,185.09,185.03,11.21886185]
[1761876903320,5.15461208,185.09,185.03,0.66]
[1761876903523,5.15461208,185.08,185.03,6.06451324]
[1761876903706,20.592,185.09,185.03,6.06451324]
[1761876904028,5.15461208,185.09,185.03,11.21912532]
[1761876904216,5.40222434,185.11,185.03,11.21912532]
[1761876904217,0.67,185.11,185.04,5.15461208]
[1761876904424,0.67,185.1,185.04,5.15461208]
[1761876904621,21.262,185.1,185.04,0.66]
[1761876904918,5.15461208,185.09,185.04,0.66]
[1761876905117,5.15461208,185.08,185.04,0.66]
[1761876905506,26.664497,185.1,185.04,0.66]
[1761876905709,5.15461208,185.09,185.04,0.66]
[1761876906045,0.67,185.09,184.98,10.44882769]
[1761876906332,5.15461208,185.02,184.98,6.06598983]
[1761876906711,5.15461208,185.02,184.99,0.66]
[1761876906904,5.15461208,185.03,185.0,5.4054054]
[1761876907249,20.592,185.1,185.01,0.66]
[1761876907452,0.87,185.13,185.04,5.15461208]
[1761876907737,0.67,185.12,185.05,5.15461208]
[1761876907942,5.15461208,185.11,185.05,5.15461208]
[1761876908131,5.15461208,185.11,185.06,0.66]
[1761876908518,5.15461208,185.11,185.02,9.78882769]
[1761876908519,5.82461208,185.1,185.02,9.78882769]
[1761876908700,5.15461208,185.1,185.03,0.66]
[1761876908906,0.67,185.09,185.03,11.21888885]
[1761876909109,0.67,185.09,185.04,5.15461208]
[1761876909645,3.42702676,185.1,185.05,5.81461208]
[1761876909847,5.35461208,185.13,185.06,14.94343977]
[1761876910139,5.15461208,185.11,185.05,5.15461208]
[1761876910348,4.09681575,185.12,185.05,5.15461208]
[1761876910349,5.15461208,185.1,185.05,9.78882769]
[1761876910557,5.82461208,185.11,185.05,14.94343977]
[1761876910915,0.67,185.11,185.06,5.15461208]
[1761876911338,5.82461208,185.11,185.06,5.40347887]
[1761876911731,0.2,185.13,185.09,5.15461208]
[1761876912041,0.2,185.13,185.08,5.15461208]
[1761876912212,0.2,185.13,185.09,5.15461208]
[1761876912620,0.87,185.13,185.08,5.81461208]
[1761876912824,4.79731008,185.13,185.08,5.81461208]
[1761876913016,4.12731008,185.13,185.09,10.5573891]
[1761876913212,0.2,185.13,185.09,11.2173891]
[1761876913411,0.2,185.13,185.09,5.81461208]
[1761876913615,0.2,185.13,185.07,9.78882769]
[1761876913616,5.15461208,185.1,185.03,21.79245289]
[1761876913845,6.27164775,185.13,185.04,9.78882769]
[1761876914016,8.01868603,185.12,185.04,15.60343977]
[1761876914214,3.92534698,185.11,185.04,15.60343977]
[1761876914433,3.92534698,185.1,185.04,15.60343977]
[1761876914643,5.15461208,185.1,185.04,15.60343977]
[1761876914844,0.67,185.1,185.04,15.60343977]
[1761876915048,5.15461208,185.09,185.04,15.85293241]
[1761876915259,0.67,185.1,185.05,0.66]
[1761876915422,0.67,185.1,185.05,5.81461208]
[1761876915762,5.15461208,185.09,185.04,9.78882769]
[1761876915926,5.15461208,185.08,185.03,9.78882769]
[1761876916331,5.82461208,185.08,185.03,10.44882769]
[1761876916536,5.86461208,185.07,185.02,5.40456907]
[1761876916731,5.15461208,185.08,185.02,10.55918115]
[1761876917153,5.15461208,185.08,185.02,11.22918115]
[1761876917449,5.15461208,185.07,185.02,6.07456907]
[1761876917614,5.40248514,185.1,185.03,0.67]
[1761876917819,5.15461208,185.08,185.02,10.55918115]
[1761876918033,0.71,185.09,185.02,10.55918115]
[1761876918235,0.71,185.08,185.02,10.55918115]
[1761876918663,5.86461208,185.08,185.02,6.07456907]
[1761876918963,5.86461208,185.08,185.02,11.22918115]
[1761876919753,5.86461208,185.08,185.02,5.40456907]
[1761876919754,0.71,185.08,185.02,5.40456907]
[1761876919961,0.71,185.08,185.02,11.22918115]
[1761876920452,5.86461208,185.08,185.02,11.22918115]
[1761876920657,5.15461208,185.07,185.01,9.78882769]
[1761876920835,5.15461208,185.05,185.0,0.67]
[1761876921034,0.71,185.06,184.99,9.78882769]
[1761876921248,13.50641512,185.1,184.98,5.40598983]
[1761876921249,5.15461208,185.03,184.98,5.40598983]
[1761876921558,8.05701346,185.09,184.98,5.40598983]
[1761876921559,5.15461208,185.06,185.0,5.15461208]
[1761876921737,5.15461208,185.06,185.0,5.82461208]
[1761876921940,5.86461208,185.07,185.01,5.15461208]
[1761876922138,5.86461208,185.07,185.01,5.82461208]
[1761876922334,0.71,185.07,185.01,5.82461208]
[1761876922551,0.71,185.07,185.02,0.67]
[1761876922854,20.592,185.09,185.03,5.15461208]
[1761876923062,20.592,185.09,185.03,5.82461208]
[1761876923063,0.71,185.09,185.03,5.82461208]
[1761876923242,5.86461208,185.09,185.03,5.82461208]
[1761876923559,20.592,185.1,185.04,0.67]
[1761876923775,25.74661208,185.1,185.04,5.82461208]
[1761876923954,5.15461208,185.12,185.06,5.15461208]
[1761876924463,5.15461208,185.12,185.07,0.67]
[1761876924875,5.15461208,185.11,185.07,0.67]
[1761876925169,5.15461208,185.09,185.03,0.67]
[1761876925336,2.02203061,185.08,185.03,0.67]
[1761876925767,2.02203061,185.09,185.03,2.69203061]
[1761876925937,0.71,185.1,185.03,2.69203061]
[1761876926155,2.02203061,185.1,185.04,2.69203061]
[1761876926467,2.02203061,185.09,185.04,0.67]
[1761876926630,2.02203061,185.1,185.04,2.69203061]
[1761876926837,2.02203061,185.1,185.06,5.40365286]
[1761876927035,0.2,185.13,185.09,2.02203061]
[1761876927234,2.22203061,185.13,185.07,10.45882769]
[1761876927434,2.02203061,185.12,185.07,10.45882769]
[1761876927869,2.93203061,185.13,185.08,0.67]
[1761876928044,0.2,185.13,185.08,0.67]
[1761876928670,0.2,185.13,185.09,5.40277702]
[1761876929369,2.02203061,185.1,185.05,0.72]
[1761876929571,0.66,185.12,185.05,0.72]
[1761876929752,2.02203061,185.09,185.06,5.40365286]
[1761876930358,2.02203061,185.1,185.06,5.40365286]
[1761876930680,2.02203061,185.11,185.07,0.72]
[1761876930973,2.68203061,185.12,185.07,0.72]
[1761876931133,22.81403061,185.13,185.07,0.72]
[1761876931339,25.93848195,185.13,185.07,0.72]
[1761876931663,26.59848195,185.13,185.07,0.72]
[1761876932041,0.66,185.12,185.08,5.40306894]
[1761876932253,9.73779143,185.12,185.08,5.40306894]
[1761876932432,0.66,185.11,185.08,5.40306894]
[1761876932839,5.80648195,185.11,185.06,5.40346942]
[1761876933052,5.14648195,185.1,185.06,5.40346942]
[1761876933274,0.66,185.1,185.06,5.40346942]
[1761876933959,0.66,185.1,185.06,10.54995137]
[1761876934162,0.66,185.1,185.06,11.26995137]
[1761876935271,3.93769903,185.11,185.07,0.72]
[1761876935454,0.66,185.12,185.07,8.48488367]
[1761876935650,7.45695109,185.12,185.07,10.50882769]
[1761876935849,7.76488367,185.1,185.04,6.12423692]
[1761876936071,7.76488367,185.1,185.05,9.78882769]
[1761876936263,3.94068664,185.09,185.05,9.78882769]
[1761876936464,3.94068664,185.09,185.05,18.27371136]
[1761876936685,0.66,185.11,185.05,18.27371136]
[1761876936853,8.42488367,185.11,185.05,18.27371136]
[1761876937054,3.94102035,185.1,185.06,13.16853653]
[1761876937264,3.94102035,185.09,185.06,13.88853653]
[1761876937474,0.66,185.1,185.06,13.88853653]
[1761876937857,7.47012447,185.1,185.06,13.88853653]
[1761876938066,3.94483777,185.09,185.06,13.88853653]
[1761876938269,8.42488367,185.12,185.06,13.88853653]
[1761876938583,8.13457881,185.11,185.06,27.3976687]
[1761876938782,7.47457881,185.1,185.06,27.3976687]
[1761876938983,7.47457881,185.09,185.06,27.3976687]
[1761876939185,0.66,185.1,185.06,27.3976687]
[1761876939369,7.47799183,185.11,185.06,27.3976687]
[1761876939688,7.47799183,185.1,185.06,27.3976687]
[1761876939875,7.47799183,185.09,185.06,26.6776687]
[1761876940180,7.48048401,185.08,185.06,18.91278503]
[1761876940357,0.66,185.1,185.06,18.91278503]
[1761876940566,3.95165818,185.09,185.08,7.76488367]
[1761876940778,0.2,185.13,185.08,7.76488367]
[1761876940987,7.48367086,185.12,185.08,8.48488367]
[1761876941192,7.48367086,185.11,185.08,8.48488367]
[1761876941493,0.86,185.13,185.08,8.48488367]
[1761876941494,7.48579069,185.1,185.08,8.48488367]
[1761876941697,0.2,185.13,185.09,8.48488367]
[1761876941898,3.95475761,185.12,185.1,7.76488367]
[1761876942092,0.2,185.13,185.11,5.40219329]
[1761876942299,7.49247998,185.12,185.11,6.12219329]
[1761876942601,7.49252338,185.12,185.11,5.40219329]
[1761876942772,3.95707426,185.12,185.11,5.40219329]
[1761876943171,7.49664418,185.12,185.11,6.12219329]
[1761876943377,7.49664418,185.12,185.11,13.88707696]
[1761876945214,7.49664418,185.12,185.11,0.72]
[1761876945498,7.49664418,185.12,185.1,17.55371136]
[1761876945668,7.49664418,185.11,185.1,18.27371136]
[1761876947486,7.49664418,185.11,185.1,22.9561965]
[1761876947885,7.49664418,185.11,185.1,23.6761965]
[1761876948390,3.95707426,185.11,185.1,23.6761965]
[1761876949098,3.95707426,185.12,185.1,23.6761965]
[1761876949306,7.5020663,185.11,185.1,15.91131283]
[1761876949606,3.95707426,185.11,185.1,15.91131283]
[1761876949796,0.2,185.13,185.1,29.41752568]
[1761876949992,3.96797656,185.12,185.11,0.72]
[1761876950201,0.2,185.13,185.11,0.72]
[1761876950391,4.1673916,185.13,185.12,7.76488367]
[1761876950713,4.1673916,185.13,185.12,17.55371136]
[1761876950919,4.1673916,185.13,185.12,18.27371136]
[1761876951093,0.2,185.13,185.12,18.27371136]
[1761876951303,0.2,185.13,185.12,19.06599031]
[1761876951802,0.2,185.14,185.13,9.78882769]
[1761876952009,0.2,185.14,185.13,16.81935001]
[1761876953013,0.2,185.14,185.13,13.66408885]
[1761876953610,0.2,185.14,185.13,19.06569852]
[1761876954920,1e-08,185.14,185.13,22.22095968]
[1761876956414,1e-08,185.14,185.13,15.91043736]
[1761876956598,0.66000001,185.14,185.08,13.50766039]
[1761876956793,0.66000001,185.14,185.09,3.15526116]
[1761876956996,3.81526117,185.14,185.08,16.66292155]
[1761876957203,3.96422479,185.13,185.09,12.94408885]
[1761876957407,0.66,185.13,185.1,8.5577463]
[1761876957603,0.66,185.13,185.11,3.15526116]
[1761876957820,1e-08,185.14,185.11,3.15526116]
[1761876957821,1e-08,185.14,185.11,3.87526116]
[1761876958002,1e-08,185.14,185.1,18.90869799]
[1761876958003,0.66000001,185.14,185.1,22.06395915]
[1761876958204,8.24113511,185.14,185.1,22.06395915]
[1761876958525,7.5811351,185.13,185.11,3.15526116]
[1761876958703,0.66000001,185.14,185.11,3.15526116]
[1761876958898,0.66000001,185.14,185.1,83.76395915]
[1761876959426,8.24028036,185.14,185.1,83.76395915]
[1761876959722,7.58028035,185.13,185.1,83.76395915]
[1761876959927,0.71,185.13,185.1,83.76395915]
[1761876960112,0.71,185.12,185.1,67.10248514]
[1761876960604,8.29036952,185.12,185.1,67.10248514]
[1761876960806,3.96296007,185.11,185.1,67.10248514]
[1761876961007,7.82822123,185.11,185.06,61.7]
[1761876961216,3.15526116,185.08,185.03,61.7]
[1761876961427,4.6717193,185.07,185.03,61.7]
[1761876961620,7.82698046,185.07,185.03,61.7]
[1761876961827,0.71,185.06,185.02,28.70517039]
[1761876962131,3.86526116,185.06,185.01,9.78882769]
[1761876962320,0.71,185.06,185.01,9.78882769]
[1761876962622,0.71,185.06,185.01,12.94408885]
[1761876962623,7.57954302,185.06,185.01,12.94408885]
[1761876962823,20.592,185.11,185.05,3.15526116]
[1761876963012,8.29256455,185.1,185.05,3.15526116]
[1761876963220,7.58235672,185.09,185.05,9.78882769]
[1761876963405,3.96362002,185.08,185.04,9.78882769]
[1761876963606,0.71,185.08,185.04,9.78882769]
[1761876963832,0.71,185.07,185.04,9.78882769]
[1761876964333,0.71,185.07,185.05,5.40394487]
[1761876965206,0.71,185.07,185.03,5.40424383]
[1761876965403,3.15526116,185.06,185.01,5.40484327]
[1761876965617,0.71,185.07,185.01,5.40484327]
[1761876965618,10.73873342,185.05,185.01,5.40484327]
[1761876965811,0.71,185.07,185.0,75.21279812]
[1761876965812,3.15526116,185.03,185.0,5.4053691]
[1761876966018,7.5822038,185.02,185.0,5.4053691]
[1761876966229,3.86526116,185.02,184.98,5.40598983]
[1761876966401,0.71,185.01,184.98,5.40598983]
[1761876967433,7.77370376,185.03,184.98,5.40598983]
[1761876967736,7.77370376,185.0,184.98,5.40598983]
[1761876967930,0.71,185.02,184.98,5.40598983]
[1761876968227,8.48370376,185.01,184.98,5.40598983]
[1761876968611,0.71,185.0,184.98,5.40598983]
[1761876969232,0.71,185.0,184.97,5.40628209]
[1761876969944,0.71,185.0,184.96,5.40655688]
[1761876970314,7.77370376,184.99,184.96,5.40655688]
[1761876970510,0.71,185.0,184.94,5.40690701]
[1761876970511,7.77370376,184.97,184.94,5.40690701]
[1761876970716,6.11556274,185.0,184.94,5.40690701]
[1761876970717,7.77370376,184.98,184.94,5.40690701]
[1761876971125,0.71,184.97,184.94,5.40690701]
[1761876971331,0.71,184.97,184.93,15.19627915]
[1761876972150,0.71,184.97,184.93,28.71490782]
[1761876972313,0.71,184.97,184.94,7.77370376]
[1761876972514,0.71,184.99,184.94,7.77370376]
[1761876972715,0.71,185.04,184.97,7.77370376]
[1761876972916,7.77370376,185.02,184.96,7.77370376]
[1761876973115,21.302,185.03,184.93,28.71490782]
[1761876973116,7.77370376,184.99,184.93,28.71490782]
[1761876973347,7.77370376,184.99,184.93,36.48861158]
[1761876973537,0.71,184.98,184.93,28.71490782]
[1761876973737,0.71,184.98,184.93,36.48861158]
[1761876974351,0.71,184.98,184.93,37.13861158]
[1761876975644,0.71,185.01,184.96,7.77370376]
[1761876975844,21.302,185.01,184.97,7.77370376]
[1761876976049,21.302,185.01,184.97,69.47370376]
[1761876976845,0.71,185.01,184.98,7.77370376]
[1761876977350,7.77370376,185.04,184.98,7.77370376]
[1761876977351,0.67,185.03,184.98,7.77370376]
[1761876977728,0.67,185.03,184.99,5.4056976]
[1761876978431,20.592,185.03,185.0,7.77370376]
[1761876978629,0.67,185.05,185.0,7.77370376]
[1761876978823,0.67,185.05,185.01,7.77370376]
[1761876979242,0.67,185.08,185.03,7.77370376]
[1761876979418,8.44370376,185.08,185.02,7.77370376]
[1761876979733,0.67,185.07,185.02,7.77370376]
[1761876979942,0.67,185.07,185.03,5.40452899]
[1761876980131,0.67,185.07,185.03,13.17823275]
[1761876980617,0.67,185.07,185.03,26.68955523]
[1761876981534,0.67,185.07,185.03,18.91585147]
[1761876981751,0.67,185.07,185.03,26.68955523]
[1761876982145,8.44370376,185.1,185.04,7.77370376]
[1761876982422,0.67,185.09,185.04,7.77370376]
[1761876982835,0.67,185.12,185.08,7.77370376]
[1761876983223,8.22518202,185.14,185.08,8.47370376]
[1761876983438,3.94924861,185.13,185.08,8.47370376]
[1761876983630,0.67000001,185.14,185.09,7.77370376]
[1761876983823,4.6187952,185.14,185.09,7.77370376]
[1761876984035,0.67000001,185.14,185.1,5.40248514]
[1761876984231,0.67,185.13,185.1,5.40248514]
[1761876984654,0.67,185.13,185.1,26.68240175]
[1761876984845,1e-08,185.14,185.11,7.77370376]
[1761876985759,1e-08,185.14,185.11,8.47370376]
[1761876986259,1e-08,185.14,185.12,5.40190146]
[1761876986447,1e-08,185.14,185.13,17.56253145]
[1761876986757,1e-08,185.14,185.13,18.26253145]
[1761876987774,1e-08,185.14,185.13,18.80269241]
[1761876988259,1e-08,185.14,185.13,24.48862522]
[1761876988763,1e-08,185.14,185.13,45.08062522]
[1761876988966,1e-08,185.14,185.13,24.48862522]
[1761876989539,0.2,185.25,185.16,9.78882769]
[1761876989840,0.2,185.25,185.21,9.78882769]
[1761876990048,0.2,185.25,185.22,7.77370376]
[1761876990241,0.2,185.25,185.18,9.78882769]
[1761876990242,0.2,185.25,185.21,7.77370376]
[1761876990564,0.2,185.25,185.22,7.77370376]
[1761876990961,0.2,185.25,185.24,17.56253145]
[1761876991461,0.2,185.25,185.24,18.28253145]
[1761876991657,1e-08,185.25,185.24,18.28253145]
[1761876992258,1e-08,185.25,185.24,23.68093352]
[1761876992450,1e-08,185.25,185.24,24.22077372]
[1761876993864,1e-08,185.26,185.25,10.50882769]
[1761876994069,1e-08,185.26,185.25,18.28253145]
[1761876994266,1e-08,185.26,185.25,23.68064211]
[1761876994563,1e-08,185.27,185.26,10.50882769]
[1761876994766,1e-08,185.27,185.26,79.98253145]
[1761876995147,1e-08,185.27,185.26,71.48882769]
[1761876995369,1e-08,185.27,185.26,76.62400447]
[1761876996256,1e-08,185.27,185.26,82.02182375]
[1761876996567,0.69000001,185.27,185.26,5.39781928]
[1761876996789,1e-08,185.27,185.26,5.39781928]
[1761876996944,1e-08,185.27,185.26,10.53299606]
[1761876997147,1e-08,185.27,185.26,20.32182375]
[1761876997349,1e-08,185.27,185.26,21.04182375]
[1761876997545,1e-08,185.27,185.26,15.90664697]
[1761876997763,1e-08,185.27,185.26,21.04182375]
[1761876999965,1e-08,185.27,185.26,83.02614689]
[1761877000162,1e-08,185.27,185.26,83.56592881]
[1761877000979,1e-08,185.3,185.29,35.80032761]
[1761877001463,1e-08,185.3,185.29,36.52032761]
[1761877001863,1e-08,185.3,185.29,103.61727293]
[1761877003406,0.2,185.33,185.32,14.92400447]
[1761877004013,0.2,185.33,185.32,20.32007612]
[1761877004330,0.2,185.33,185.32,21.04007612]
[1761877005375,0.69,185.37,185.33,9.78882769]
[1761877005594,0.69,185.39,185.36,14.92400447]
[1761877005897,5.13517678,185.37,185.33,9.78882769]
[1761877006193,0.69,185.36,185.33,14.92400447]
[1761877006784,0.69,185.36,185.33,9.78882769]
[1761877007598,0.69,185.36,185.34,5.39548937]
[1761877007893,0.69,185.36,185.34,10.53066615]
[1761877008111,0.69,185.38,185.35,14.92400447]
[1761877009615,0.69,185.38,185.36,5.3949072]
[1761877010686,0.69,185.38,185.37,5.13517678]
[1761877010882,0.69,185.38,185.36,10.53008398]
[1761877011435,0.69,185.38,185.37,9.78882769]
[1761877011782,0.69,185.38,185.37,5.39461617]
[1761877012019,0.2,185.4,185.38,9.78882769]
[1761877012232,0.89,185.4,185.38,14.92400447]
[1761877012586,0.69,185.39,185.38,14.92400447]
[1761877013005,0.2,185.4,185.38,14.92400447]
[1761877013297,0.89,185.4,185.39,14.92400447]
[1761877013789,0.2,185.4,185.39,20.31803866]
[1761877015584,21.282,185.46,185.4,9.78882769]
[1761877015787,0.69,185.46,185.44,5.13517678]
[1761877015992,0.69,185.46,185.45,14.92400447]
[1761877016500,5.82517678,185.46,185.41,5.39345234]
[1761877016695,3.63408148,185.45,185.41,5.39345234]
[1761877016898,4.32408148,185.45,185.41,5.39345234]
[1761877017110,0.69,185.44,185.41,5.39345234]
[1761877017298,0.69,185.44,185.41,7.40713193]
[1761877017699,0.69,185.44,185.41,20.8907628]
[1761877018104,0.69,185.44,185.42,11.80250728]
[1761877018302,0.69,185.44,185.42,9.78882769]
[1761877018505,4.32470106,185.44,185.42,9.78882769]
[1761877018709,3.63470106,185.43,185.42,9.78882769]
[1761877018905,0.69,185.44,185.42,9.78882769]
[1761877019347,4.32470106,185.44,185.42,11.80250728]
[1761877019625,3.64079635,185.43,185.42,9.78882769]
[1761877019918,3.64079635,185.43,185.4,2.01367959]
[1761877019919,3.64079586,185.43,185.4,2.01367959]
[1761877020124,20.592,185.45,185.4,2.01367959]
[1761877020315,4.3007984,185.44,185.4,2.01367959]
[1761877020492,3.6407984,185.43,185.41,9.78882769]
[1761877020693,3.6407984,185.43,185.4,9.78882769]
[1761877020995,3.6407984,185.42,185.41,0.69]
[1761877021197,0.66,185.47,185.41,2.70367959]
[1761877021393,3.64685862,185.46,185.44,2.01367959]
[1761877021742,0.2,185.48,185.46,5.39199827]
[1761877021924,3.64724387,185.47,185.46,7.40567786]
[1761877022407,3.64724387,185.47,185.46,17.19450555]
[1761877022617,0.2,185.48,185.47,9.78882769]
[1761877022819,3.84901126,185.48,185.47,11.80250728]
[1761877023854,0.2,185.48,185.47,17.88421483]
[1761877024374,3.85294679,185.48,185.47,17.88421483]
[1761877024679,0.2,185.48,185.47,17.88421483]
[1761877024977,3.85336063,185.48,185.47,17.19421483]
[1761877026046,4.51336063,185.48,185.37,0.69]
[1761877026249,3.65336063,185.47,185.4,8.05471836]
[1761877026474,0.86,185.48,185.46,2.01367959]
[1761877026651,4.31742983,185.47,185.42,0.14216157]
[1761877026869,3.65742983,185.46,185.45,11.80250728]
[1761877027076,4.31752474,185.46,185.45,11.80250728]
[1761877027296,4.31752474,185.46,185.45,9.78882769]
[1761877027512,4.31752474,185.46,185.42,5.12564066]
[1761877027665,3.65752474,185.45,185.42,5.12564066]
[1761877027992,0.2,185.48,185.43,5.39287062]
[1761877027993,4.31752474,185.44,185.43,5.39287062]
[1761877028496,3.65752474,185.44,185.43,10.51851128]
[1761877028660,3.65752474,185.44,185.43,20.30733897]
[1761877029588,0.2,185.48,185.44,9.78882769]
[1761877029795,0.2,185.48,185.47,14.91446835]
[1761877029978,0.2,185.48,185.47,20.3061759]
[1761877030299,0.66,185.54,185.47,34.75976792]
[1761877030624,3.94730279,185.53,185.48,10.47882769]
[1761877030776,20.592,185.56,185.48,9.78882769]
[1761877031094,3.9473031,185.54,185.48,10.47882769]
[1761877031304,3.9473031,185.53,185.48,10.47882769]
[1761877031470,3.9473031,185.52,185.48,10.47882769]
[1761877031670,0.86,185.55,185.52,9.78882769]
[1761877031860,3.95105172,185.54,185.53,20.30443223]
[1761877032066,4.61105172,185.54,185.53,20.30443223]
[1761877032265,3.95105172,185.54,185.53,20.30443223]
[1761877032574,4.61105172,185.54,185.53,20.30443223]
[1761877032771,4.61105172,185.54,185.48,0.69]
[1761877032993,0.2,185.55,185.47,0.82349389]
[1761877032994,4.61105172,185.53,185.51,5.12564066]
[1761877033170,3.95105172,185.52,185.51,14.91446835]
[1761877033376,4.61105172,185.52,185.51,9.78882769]
[1761877033695,4.61105172,185.54,185.51,14.91446835]
[1761877033868,3.95105172,185.53,185.52,15.17908211]
[1761877034977,4.61105172,185.53,185.52,15.17908211]
[1761877035373,4.61105172,185.53,185.52,5.39025442]
[1761877035616,4.61105172,185.53,185.51,5.39049171]
[1761877035817,4.61105172,185.52,185.51,5.39049171]
[1761877036605,4.61105172,185.52,185.5,14.91446835]
[1761877036606,4.61105172,185.52,185.5,9.78882769]